Cogmind - Beta 11.1 *** ADVENTURER MODE // 2022.04.25 @ 11:06:33 Player: Big Tortoise Result: Destroyed by as-91769 with Assembled Blade Performance ------------- Evolutions (0) 0 Regions Visited (2) 400 Robots Destroyed (6) 30 Value Destroyed (117) 117 Prototype IDs (0) 0 Alien Tech Used (0) 0 Bonus (0) 0 TOTAL SCORE: 547 Bonus ------- None Cogmind --------- Core Integrity 0/250 Matter 300/300 Energy 250/250 System Corruption 0% Temperature Cool (0) Movement Core (200) Ox3 Location -10/Mines Parts ------- > --- POWER (1) -------- Ion Engine > --- PROPULSION (2) --- (None) > --- UTILITY (2) ------ Small Storage Unit > --- WEAPON (2) ------- Light Assault Rifle > --- INVENTORY (8) ---- High-capacity Matter Pod (174) Targeting Computer Datajack Peak State ------------ > --- POWER ------------ Ion Engine > --- PROPULSION ------- Light Treads Light Treads > --- UTILITY ---------- Small Storage Unit Seismic Detector > --- WEAPON ----------- EM Pulse Gun Assault Rifle > --- INVENTORY -------- Light Assault Rifle [Rating: 7] Favorites ----------- Power Ion Engine Engine Ion Engine Propulsion Light Treads Treads Light Treads Utility Small Storage Unit Device Seismic Detector Storage Small Storage Unit Weapon EM Pulse Gun Energy Gun EM Pulse Gun Ballistic Gun Light Assault Rifle Build | -11 -10 -10 ------- Run | Scr Mat Min Slots Evolved . | . . . Power . | . . . Propulsion . | . . . Utility . | . . . Weapon . | . . . Parts Attached 15 | 6 8 1 Power 1 | 1 . . Engine 1 | 1 . . Core . | . . . Reactor . | . . . Propulsion 4 | 2 2 . Treads 4 | 2 2 . Leg . | . . . Wheel . | . . . Hover . | . . . Flight . | . . . Utility 4 | 1 3 . Device 2 | . 2 . Storage 2 | 1 1 . Processor . | . . . Hackware . | . . . Protection . | . . . Artifact . | . . . Weapon 6 | 2 3 1 Energy Gun 2 | 1 1 . Energy Cannon . | . . . Ballistic Gun 4 | 1 2 1 Ballistic Cannon . | . . . Launcher . | . . . Special Weapon . | . . . Impact Weapon . | . . . Slashing Weapon . | . . . Piercing Weapon . | . . . Special Melee Weapon . | . . . Unidentified Prototypes . | . . . Parts Lost 5 | . 1 4 Power . | . . . Propulsion 2 | . . 2 Utility 1 | . 1 . Weapon 2 | . . 2 Highest Loss Streak 4 | . 1 4 To Critical Strikes . | . . . Average Slot Usage (%) 91 | . 88 97 Engine 14 | . 14 14 Treads 24 | . 23 26 Device 11 | . 11 14 Storage 14 | . 14 14 Energy Gun 11 | . 11 9 Ballistic Gun 14 | . 13 17 Naked Turns . | . . . Heaviest Build 15 | 14 15 14 Greatest Support 40 | 40 40 40 Greatest Overweight (x) 4 | . 4 . Average Overweight (x) . | . . . Largest Inventory Capacity 8 | 8 8 8 Average Capacity 7 | 7 8 8 Most Carried 4 | 1 4 4 Average Carried 2 | . 2 3 Final Capacity 8 | 8 8 8 Final Carried 4 | 1 4 3 Class Distribution -------------------- 100% | Mutant Dominant Class ---------------- Mutant | -10/Materials Mutant | -10/Mines Resources | -11 -10 -10 ----------- Run | Scr Mat Min Matter Collected 545 | 231 174 140 Remotely 174 | . 34 140 Salvage Created 273 | . 230 43 Parts 11 | . 11 . Haulers Intercepted . | . . . Recyclers Shooed . | . . . Parts Field Recycled . | . . . Retrieved Matter . | . . . Parts Self-Destructed . | . . . Prevented . | . . . Kills | -11 -10 -10 ------- Run | Scr Mat Min Combat Hostiles Destroyed 8 | . 5 3 Guns 8 | . 5 3 Classes Destroyed 4 | . 3 1 Recycler 1 | . 1 . Swarmer 3 | . 3 . Grunt 2 | . 2 . Assembled 3 | . . 3 Best Kill Streak 3 | . 3 3 Combat Bots Only 3 | . 3 3 Max Kills in Single Turn 1 | . 1 1 Gunslinging . | . . . Exploded . | . . . Melee . | . . . Uniques/NPCs Destroyed . | . . . Combat | -11 -10 -10 -------- Run | Scr Mat Min Damage Taken 825 | . 145 680 Core 275 | . 18 257 Absorbed by Shields . | . . . Core Remaining (%) 100 | 100 . . Volleys Fired 36 | . 24 12 Largest 2 | . 2 2 Hottest 60 | . 60 40 Shots Fired 55 | . 35 20 Gun 55 | . 35 20 Cannon . | . . . Launcher . | . . . Special . | . . . Kinetic 44 | . 24 20 Thermal . | . . . Explosive . | . . . Electromagnetic 11 | . 11 . Robot Hit Streak 16 | . 16 11 Robot Miss Streak 1 | . 1 1 Penetration Max . | . . . Secondary Targets 3 | . 1 2 Max Gunslinging Chain 1 | . 1 1 Shots Hit Robots 47 | . 29 18 Core Hits 21 | . 10 11 Critical Kills . | . . . Critical Parts Destroyed . | . . . Critical Strikes . | . . . Melee Attacks . | . . . Impact . | . . . Slashing . | . . . Piercing . | . . . Sneak Attacks . | . . . Combat Hostiles . | . . . Follow-up Attacks . | . . . Damage Inflicted 492 | . 305 187 Guns 484 | . 305 179 Cannons . | . . . Explosions . | . . . Melee . | . . . Ramming 8 | . . 8 Kinetic 382 | . 203 179 Thermal . | . . . Explosive . | . . . Electromagnetic 102 | . 102 . Impact . | . . . Slashing . | . . . Piercing . | . . . Highest Corruption . | . . . Average Corruption . | . . . Corruption Purged . | . . . Corruption Blocked . | . . . Overload Shots . | . . . Overflow Damage . | . . . Projectiles . | . . . Explosions . | . . . Melee . | . . . Knockbacks . | . . . Impact . | . . . Kinetic . | . . . Secondary . | . . . Self-Inflicted Damage . | . . . Shots . | . . . Rammed 5 | . . 5 Targets Rammed 5 | . . 5 Kicked . | . . . Crushed . | . . . Highest Temperature 54 | . 54 20 Average Temperature 28 | . 30 12 Received Heat Transfer 281 | . 81 200 Siege Activations . | . . . Robots Corrupted . | . . . Combat Hostiles . | . . . Parts Fried . | . . . Impact Corruptions . | . . . Robots Melted . | . . . Combat Hostiles . | . . . Parts Melted . | . . . Heat Transferred . | . . . Parts Sabotaged . | . . . Parts Stolen . | . . . Parts Stripped . | . . . Power Chain Reactions . | . . . Missiles Intercepted . | . . . Alert | -11 -10 -10 ------- Run | Scr Mat Min Peak Influence 176 | . 176 6 Initial 6 | . . 6 Average 39 | . 58 3 Maximum Alert Level . | . . . Low Security (%) 100 | 100 100 100 Level 1 . | . . . Level 2 . | . . . Level 3 . | . . . Level 4 . | . . . Level 5 . | . . . High Security . | . . . Max Security . | . . . Squads Dispatched 2 | . 2 . Investigation 2 | . 2 . Extermination . | . . . Reinforcement . | . . . Assault . | . . . Garrison . | . . . Intercept . | . . . Searches Triggered . | . . . Construction Impeded . | . . . Haulers Reinforced . | . . . Active Scanning Responses . | . . . Cargo Convoy Interrupts . | . . . Stealth | -11 -10 -10 --------- Run | Scr Mat Min Distress Signals 1 | . 1 . Communications Jammed . | . . . Distress Signals . | . . . Times Spotted 32 | . 11 21 Peak Tracking Total 18 | . 6 18 Tactical Retreats 3 | . 1 2 Traps | -11 -10 -10 ------- Run | Scr Mat Min Traps Triggered 3 | . 3 . Indirectly . | . . . Trap Hack Attempts . | . . . Triggered . | . . . Disarmed . | . . . Reprogrammed . | . . . Reused . | . . . Traps Extracted . | . . . Installed . | . . . Triggered . | . . . Machines | -11 -10 -10 ---------- Run | Scr Mat Min Machines Disabled . | . . . Max in Single Turn . | . . . Machines Sabotaged . | . . . Garrisons Compromised . | . . . Overloaded Fab Kills . | . . . Hacking | -11 -10 -10 --------- Run | Scr Mat Min Machines Accessed 4 | . 4 . Terminals 3 | . 3 . Fabricators . | . . . Repair Stations . | . . . Recycling Units 1 | . 1 . Scanalyzers . | . . . Garrison Access . | . . . Total Hacks 8 | . 8 . Successful 7 | . 7 . Failed 1 | . 1 . Catastrophic . | . . . Database Lockouts . | . . . Manual 4 | . 4 . Terminals 7 | . 7 . Fabricators . | . . . Repair Stations . | . . . Recycling Units 1 | . 1 . Scanalyzers . | . . . Garrison Access . | . . . Terminal Hacks 6 | . 6 . Robot Analysis 1 | . 1 . Branch Access Points 1 | . 1 . Alert Level 1 | . 1 . Locate Traps 1 | . 1 . Hauler Manifests 1 | . 1 . Registered Components 1 | . 1 . Fabricator Hacks . | . . . Repair Station Hacks . | . . . Recycling Unit Hacks . | . . . Scanalyzer . | . . . Garrison Access Hacks . | . . . Unauthorized Hacks 1 | . 1 . Terminals . | . . . Fabricators . | . . . Repair Stations . | . . . Recycling Units 1 | . 1 . Tunnel 1 | . 1 . Scanalyzers . | . . . Garrison Access . | . . . Data Cores Recovered . | . . . Used . | . . . Hacking Detections 2 | . 2 . Full Trace Events . | . . . Feedback Events . | . . . Feedback Blocked . | . . . Robot Schematics Acquired . | . . . Robots Built . | . . . Authchips . | . . . Time . | . . . Total Robot Build Rating . | . . . Part Schematics Acquired . | . . . Parts Built . | . . . Authchips . | . . . Time . | . . . Total Part Build Rating . | . . . Parts Repaired . | . . . Time . | . . . Parts Recycled . | . . . Recycled Matter . | . . . Retrieved Matter . | . . . Retrieved Components . | . . . Parts Scanalyzed . | . . . Part Schematics Acquired . | . . . Parts Damaged . | . . . Bothacking | -11 -10 -10 ------------ Run | Scr Mat Min Used RIF Installer . | . . . Robots Hacked . | . . . Non-combat . | . . . Combat . | . . . Robot Hacks Applied . | . . . Relay Couplers Released . | . . . Fabnet Peak Effective % . | . . . Robots Rewired . | . . . Allies Hacked . | . . . Hacks Repelled . | . . . Allies | -11 -10 -10 -------- Run | Scr Mat Min Total Allies . | . . . Largest Group . | . . . Highest-Rated Group . | . . . Highest-Rated Ally . | . . . Total Orders . | . . . Ally Attacks . | . . . Total Damage . | . . . Kills . | . . . Allies Corrupted . | . . . Allies Melted . | . . . Intel | -11 -10 -10 ------- Run | Scr Mat Min Robot Analysis Total 1 | . 1 . Derelict Logs Recovered . | . . . Drone Launches . | . . . Drone Recoveries . | . . . Exploration | -11 -10 -10 ------------- Run | Scr Mat Min Turns Passed 635 | 80 421 134 Spaces Moved 314 | 45 209 60 Core 19 | 1 18 . Treads 295 | 44 191 60 Legs . | . . . Wheels . | . . . Hover . | . . . Flight . | . . . Fastest Speed 50 | 50 160 160 Average Speed 162 | 157 164 160 Slowest Speed 250 | 160 250 160 Overloaded Moves . | . . . Propulsion Burnouts . | . . . Robots Hopped . | . . . Cave-ins Triggered . | . . . Exploration Rate (%) 26 | 3 48 28 Regions Visited 2 Branch Regions 1 Pre-discovered Areas 1 | . 1 . Known Exits Taken 1 | . 1 . Unknown Exits Taken 1 | 1 . . Scrap Searched . | . . . Spaces Dug . | . . . Terrain Destroyed . | . . . Melee . | . . . Projectile . | . . . AOE . | . . . Terrain Rammed . | . . . Walls Destroyed . | . . . Machines Disabled . | . . . Actions | -11 -10 -10 --------- Run | Scr Mat Min Total 381 | 51 252 78 Wait 7 | . 7 . Move 312 | 44 208 60 Hop . | . . . Pick Up 5 | 1 4 . Fast Attach 13 | 6 7 . Attach 2 | . 1 1 Detach . | . . . Swap . | . . . Drop 1 | . 1 . Fire 36 | . 24 12 Melee . | . . . Ram 2 | . . 2 Kick . | . . . Crush 3 | . . 3 Escape Stasis . | . . . Rewire . | . . . Trap . | . . . Miscellaneous . | . . . Route ------- -11/Scrapyard -10/Materials (discovered 3 exits: [*Mat x2] / *Min) -10/Mines History --------- Turn | Location | Event 32 | -11/Scrapyard | Discovered new exit (range 16) 81 | -11/Scrapyard | Entered Materials 313 | -10/Materials | Discovered new exit (range 10) 322 | -10/Materials | Build established: Mutant 391 | -10/Materials | Identified exit to Mines 443 | -10/Materials | Discovered new exit (range 11) 502 | -10/Materials | Entered Mines 580 | -10/Mines | Assembled infested the area 585 | -10/Mines | Assisted by a Guerilla fighting off Assembled 609 | -10/Mines | Core integrity fell below 50% 631 | -10/Mines | Core integrity fell below 20% 636 | -10/Mines | Destroyed by as-91769 with Assembled Blade Last Messages --------------- 00594_ as-81615 suffers critical hit (Destroy). 00594_ as-81615 destroyed. 00597_ 2X-DP3(h) destroyed. 00605_ as-55109 destroyed. 00605_ Switching to secondary target: as-68910. 00606_ Acquired 20 matter. 00613_ R-06 Scavenger destroyed. 00614_ Acquired 87 matter. 00619_ as-24329 destroyed. 00619_ Switching to secondary target: as-94780. 00620_ Acquired 10 matter. 00620_ Lgt. Treads destroyed. 00621_ Assault Rifle destroyed. 00622_ as-94780 destroyed. 00623_ Acquired 13 matter. 00629_ Slammed into as-91769. 00630_ Tractor Beam severed. 00631_ Slammed into as-64303. 00633_ Lgt. Treads destroyed. 00634_ Slammed into as-64303. Map ----- +----------------------------------------------------+ | ?????????????????????????????????????????????????? | | ?????????????????????????????????????????????????? | | ?????????????????????????????????????????????????? | | ?????????????????????????????????????????????????? | | ?????????????????????????????????????????????????? | | ?????????????????????????????????????????????????? | | ?????????????????????????????????????????????????? | | ?????????????????????????????????????????????????? | | ?????????????????????????????????????????????????? | | ?????????????????????????????????????????????????? | | ????????????????????????r????????????????????????? | | ???????????????????????? ????????????????????????? | | ???????????????????????? ????????????????????????? | | ???????????????????????? ????????????????????????? | | ???????????????????????? ????????????????????????? | | ???????????????????????? ????????????????????????? | | ???????????????????????? ##??????????????????????? | | ???????????????????????? ??????????????????????? | | ???????????????????????? ??????????????????????? | | ????????????????????????# #??????????????????????? | | ????????????????????????# #??????????????????????? | | ????????????????????????# #??????????????????????? | | ????????????????????????# #??????????????????????? | | ????????????????????????# #??????????????????????? | | ????????????????????????#a#??????????????????????? | | ????????????????????????#@####???????????????????? | | ????????????????????????#!aa #???????????????????? | | ?????????????? ?????????#a##a#???????????????????? | | ???????????? ???????= !## ##??????? ##????????? | | ??????????? ?????###### ##???? ##???????? | | ??????????? ????????## ##"# ##??????? | | ????????????# ???????# #??????? | | ?????????????# #??????# % #?????? | | ?????????????# #?????# ! % ????? | | ????????????## #????# % "# # ## ??????? | | ????????????# #??## ##### ##??#?????????? | | ????????????# ??# #????###?????????????? | | ????????????# ### ##???????????????????? | | ????????????# ##??????????????????? | | ???????####?# #??????????????????? | | ??????## #### ###### ## #?????????????????? | | ?????## ##????????# ## #?????????????????? | | ?????# ##???????# ### ##?????????????????? | | ?????# #???????# #?######??????????????????? | | ?????# ##??##### #?????????????????????????? | | ????## #??# #?????????????????????????? | | ???## #### #####?????????????????????????? | | #### #?????????????????????????????? | | ## #######?????????????????????????????? | | ## ###???????????????????????????????????? | +----------------------------------------------------+ Best States ------------- Heat Dissipation 25 Energy Generation 10 Energy Capacity 250 Matter Stores 300 Matter Capacity 300 Sight Range 16 Terrain Scan Density 10 Resistance: KI 20 Resistance: TH 20 Resistance: EX 20 Resistance: EM 20 Resistance: I 20 Resistance: S 20 Resistance: P 20 Evasion (%) 40 Recoil Reduction 2 Offensive Hacking 10 Item Schematics ----------------- None Robot Schematics ------------------ None Fabricated ------------ Nothing Alien Tech Used ----------------- None Achievements -------------- None Challenges ------------ None Game ------ Seed RagnarokBeamSuite Manual? 0 Play Time 00:10:33 Cumulative 170.6 hours Start 2022.04.25 @ 10:46:59 End 2022.04.25 @ 11:06:33 Sessions 1 Manual Loads 0 Difficulty Adventurer Special Mode None Game No. 36 Rogue 7 Adventurer 28 Explorer 1 Win Type - Total 11 Types 4/0/3/4/0/0/0/0/0 Lore% 53 Gallery% 63 Achievement% 66 Wizard Run 0 Options --------- ASCII 0 Keyboard 0 Movement Numpad Keybinds 0 Fullscreen 2 Font 18/SmallcapsGlow Map View 76x50 Tactical HUD 1 Map Filters NONE Filters NONE Steam 1 RUN: e8c8af67-9af5-45b9-8d8b-dc1cf7495f35